bitfinex-derivatives/quotes_ETHF0:USTF0_20250621
["timestamp","ask_amount","ask_price","bid_price","bid_amount"]
[1750526768668,4.71776851,2415.3,2415.2,3.27627599]
[1750526769065,4.71776851,2415.3,2414.5,6.49429462]
[1750526769066,2.06997,2415.1,2414.5,6.49429462]
[1750526769266,3.42979851,2414.7,2414.5,3.2078]
[1750526769570,0.82813,2414.6,2414.5,3.2078]
[1750526769869,2.11633,2414.6,2414.5,3.2078]
[1750526770062,2.79863,2414.6,2414.5,3.2078]
[1750526770266,2.79863,2414.6,2414.5,4.03597]
[1750526770478,2.79863,2414.6,2414.5,3.2078]
[1750526771277,2.79863,2414.6,2414.5,4.03597]
[1750526772172,1.9705,2414.6,2414.5,4.03597]
[1750526772562,2.60167851,2414.9,2414.5,3.2078]
[1750526772766,3.28717851,2414.9,2414.7,0.82809]
[1750526772972,2.17298,2414.8,2414.7,0.82809]
[1750526773473,0.8281,2414.7,2414.6,0.82811]
[1750526773671,0.82813,2414.6,2414.5,3.2078]
[1750526773868,2.14743,2414.6,2414.5,3.2078]
[1750526774178,2.14743,2414.6,2414.5,4.03597]
[1750526774366,1.3193,2414.6,2414.5,4.03597]
[1750526775072,2.14743,2414.6,2414.5,4.03597]
[1750526775274,1.3193,2414.6,2414.5,4.03597]
[1750526775969,0.6855,2414.9,2414.5,4.03597]
[1750526775970,3.28717851,2414.9,2414.8,0.82807]
[1750526776274,0.82807,2414.8,2414.7,0.82808]
[1750526776475,2.14737,2414.8,2414.7,0.82808]
[1750526777176,0.82811,2414.7,2414.6,0.82811]
[1750526777377,2.23641,2414.7,2414.6,0.82811]
[1750526777769,0.82809,2414.8,2414.7,0.8281]
[1750526777970,2.23639,2414.8,2414.7,0.8281]
[1750526778270,3.2078,2415.0,2414.9,0.82803]
[1750526779166,3.2078,2415.0,2414.9,2.19233]
[1750526779379,3.2078,2415.0,2414.9,2.26080599]
[1750526779967,0.82791,2415.3,2415.2,0.82793]
[1750526780173,5.51975851,2415.4,2415.3,0.82789]
[1750526780375,0.8279,2415.3,2415.2,0.8279]
[1750526780883,0.82794,2415.2,2415.1,0.82794]
[1750526781183,0.82791,2415.3,2415.2,0.82791]
[1750526781369,0.82793,2415.2,2415.1,0.82794]
[1750526783781,0.82792,2415.3,2415.2,0.82792]
[1750526784684,2.91809,2415.4,2415.3,0.82789]
[1750526784884,0.82791,2415.3,2415.2,0.82791]
[1750526785685,0.82794,2415.2,2415.1,0.82794]
[1750526786584,0.82796,2415.1,2415.0,10.58277]
[1750526786885,0.82796,2415.1,2415.0,4.03577]
[1750526787092,0.82795,2415.2,2415.1,0.82795]
[1750526787675,0.82796,2415.1,2415.0,4.03578]
[1750526789085,0.82796,2415.2,2415.1,0.82795]
[1750526789784,4.79219851,2415.3,2415.2,0.82793]
[1750526789985,0.82794,2415.2,2415.1,0.82794]
[1750526791788,1.3626,2415.3,2415.2,0.82793]
[1750526791990,2.19049,2415.3,2415.2,0.82793]
[1750526794692,0.82793,2415.2,2415.1,1.50974]
[1750526794994,3.42960851,2415.2,2415.1,0.82794]
[1750526797895,2.60167851,2415.2,2415.1,0.82794]
[1750526799096,2.19052,2415.3,2415.2,0.82793]
[1750526799594,2.19052,2415.3,2415.2,0.89640599]
[1750526801696,2.19052,2415.3,2415.2,0.06847599]
[1750526801996,3.28947907,2415.3,2415.2,0.06847599]
[1750526803998,3.28991287,2415.3,2415.2,0.06847599]
[1750526804595,3.42973851,2414.9,2414.8,0.82807]
[1750526804992,0.82807,2414.8,2414.7,3.2078]
[1750526805189,2.91197,2414.8,2414.7,3.2078]
[1750526807096,2.91197,2414.8,2414.7,4.0359]
[1750526808006,1.4222,2414.8,2414.7,4.0359]
[1750526809103,2.06986,2415.2,2414.7,4.0359]
[1750526809104,3.2078,2415.4,2414.7,5.27802]
[1750526809305,0.82798,2415.1,2415.0,0.82798]
[1750526809508,0.82801,2415.0,2414.9,0.82801]
[1750526809913,0.82803,2414.9,2414.8,0.6856]
[1750526810100,2.78863,2414.9,2414.8,0.6856]
[1750526810399,2.78863,2414.9,2414.8,1.51367]
[1750526813096,2.78863,2414.9,2414.7,3.2078]
[1750526813307,2.0657,2414.8,2414.4,9.7548]
[1750526813503,2.8938,2414.8,2414.7,0.8281]
[1750526813702,0.82812,2414.7,2414.6,0.82813]
[1750526814205,3.2078,2415.0,2414.9,0.82803]
[1750526814505,1.51687,2415.4,2415.3,0.82789]
[1750526814700,1.10016722,2415.4,2415.3,0.82789]
[1750526814906,0.82785,2415.5,2415.4,0.82786]
[1750526815113,1.10016021,2415.5,2415.1,3.2078]
[1750526815313,0.82785,2415.5,2415.4,0.82785]
[1750526815514,1.92800414,2415.5,2415.4,0.82785]
[1750526815707,0.82787,2415.4,2415.3,0.82788]
[1750526816916,0.82791,2415.3,2415.2,0.82791]
[1750526818317,11.23487851,2415.6,2415.1,4.03575]
[1750526818318,0.82793,2415.2,2415.1,4.03575]
[1750526818511,0.82793,2415.2,2415.1,10.58275]
[1750526820514,0.82796,2415.1,2415.0,1.49057]
[1750526820818,0.82796,2415.1,2415.0,8.03657]
[1750526823419,2.17205,2415.2,2415.1,0.82796]
[1750526823620,0.82795,2415.2,2415.1,0.82796]
[1750526824116,0.82792,2415.3,2415.2,0.82793]
[1750526825410,0.82793,2415.2,2415.1,4.03574]
[1750526825610,1.49073,2415.2,2415.1,4.03574]
[1750526828224,1.49073,2415.2,2415.1,3.2078]
[1750526829712,0.82807,2414.8,2414.7,14.52256462]
[1750526829913,0.82806,2414.9,2414.8,0.82805]
[1750526830519,0.82807,2414.8,2414.7,11.23607]
[1750526831125,0.82807,2414.8,2414.7,10.56087]
[1750526831320,2.18427,2414.8,2414.7,10.56087]
[1750526832616,2.18427,2414.8,2414.7,10.56187]
[1750526835925,2.18427,2414.8,2414.7,4.03587]
[1750526836728,2.18427,2414.8,2414.7,3.2078]
[1750526837821,2.18427,2414.8,2414.7,4.0359]
[1750526839128,1.3562,2414.8,2414.7,4.0359]
[1750526839330,0.6787,2415.2,2415.1,0.82796]
[1750526839525,0.82798,2415.1,2415.0,0.82797]
[1750526840233,2.83575,2415.2,2415.1,0.82796]
[1750526840633,0.82796,2415.1,2415.0,4.03578]
[1750526841032,2.21566,2415.1,2415.0,4.03578]
[1750526843529,2.21566,2415.1,2415.0,3.2078]
[1750526846638,0.828,2415.0,2414.9,0.6671]
[1750526847237,0.828,2415.0,2414.9,1.49512]
[1750526847537,0.828,2415.0,2414.9,0.6671]
[1750526847842,1.4712,2415.0,2414.9,0.6671]
[1750526848237,1.4712,2415.0,2414.9,1.49513]
[1750526850435,0.82787,2415.4,2415.3,0.82787]
[1750526850738,0.82791,2415.3,2415.2,0.82792]
[1750526850938,0.82793,2415.2,2415.1,10.56173]
[1750526852841,0.82793,2415.2,2415.1,3.2078]
[1750526853043,0.82793,2415.2,2415.1,9.7338]
[1750526853540,0.82793,2415.2,2415.1,3.2078]
[1750526853742,0.828,2415.0,2414.9,7.34901]
[1750526855641,0.828,2415.0,2414.9,0.82801]
[1750526855837,2.1481,2415.0,2414.9,0.82801]
[1750526857045,1.3201,2415.0,2414.9,0.82801]
[1750526857246,0.6965,2415.1,2415.0,0.828]
[1750526857445,0.82796,2415.1,2415.0,0.828]
[1750526857643,0.82795,2415.2,2415.1,0.82796]
[1750526858144,0.6633,2415.3,2415.2,0.82793]
[1750526858546,1.49119,2415.3,2415.2,0.82793]
[1750526858843,0.82786,2415.5,2415.4,0.82784]
[1750526859241,1.10010281,2415.5,2415.4,0.82784]
[1750526859444,0.82776,2415.7,2415.6,0.82776]
[1750526859948,2.82724,2415.8,2415.7,0.82776]
[1750526860148,3.92739245,2415.8,2415.7,0.82776]
[1750526860549,2.82724,2415.8,2415.7,0.82776]
[1750526861046,1.9995,2415.8,2415.6,7.34878]
[1750526861241,1.3522,2415.8,2415.7,0.82776]
[1750526861648,4.03551,2415.9,2415.8,0.82772]
[1750526862041,0.6473,2416.1,2415.7,3.2078]
[1750526862242,0.82765,2416.0,2415.9,0.82769]
[1750526862551,2.12495,2416.0,2415.9,0.82769]
[1750526863148,3.8809,2416.3,2415.9,6.521]
[1750526863352,3.70084516,2416.2,2415.8,0.6675]
[1750526863558,0.82767,2416.0,2415.9,7.34868]
[1750526864052,2.12494,2416.1,2416.0,0.82765]
[1750526864349,1.2973,2416.1,2416.0,0.82765]
[1750526864649,1.2973,2416.1,2415.9,7.34866]
[1750526865147,0.82765,2416.0,2415.9,7.34866]
[1750526865354,0.82765,2416.0,2415.9,7.34867]
[1750526866955,0.82769,2415.9,2415.8,1.4952]
[1750526867154,2.18519,2415.9,2415.8,8.0152]
[1750526867356,2.83969,2415.9,2415.8,8.0152]
[1750526867951,2.012,2415.9,2415.8,8.0152]
[1750526871469,0.82768,2416.0,2415.9,0.82769]
[1750526872269,4.60137851,2416.2,2415.8,7.1875]
[1750526872567,0.82769,2416.0,2415.9,0.82768]
[1750526873368,0.82769,2415.9,2415.8,8.0152]
[1750526875667,0.82768,2416.0,2415.9,0.82768]
[1750526878276,0.82768,2416.0,2415.8,10.3953]
[1750526878277,0.82769,2415.9,2415.8,3.2078]
[1750526878575,2.91609,2415.9,2415.8,7.34672]
[1750526878977,2.0884,2415.9,2415.8,7.34672]
[1750526879276,2.0884,2415.9,2415.8,0.82772]
[1750526880476,2.91609,2415.9,2415.8,0.82772]
[1750526880678,0.82772,2415.8,2415.7,7.34675]
[1750526880879,2.20602,2415.8,2415.7,7.34675]
[1750526881079,1.3783,2415.8,2415.7,0.82775]
[1750526881280,0.82764,2416.1,2416.0,0.82764]
[1750526882072,2.20594,2416.1,2416.0,0.82764]
[1750526883581,0.82767,2416.0,2415.9,0.82766]
[1750526883876,2.14107,2416.0,2415.9,0.82766]
[1750526884581,0.82769,2415.9,2415.8,4.7479]
[1750526884774,2.82359,2415.9,2415.8,4.0355]
[1750526885479,1.9959,2415.9,2415.8,4.0355]
[1750526885979,1.9959,2415.9,2415.8,0.8277]
[1750526887780,1.9959,2415.9,2415.8,1.5295]
[1750526888682,0.82767,2416.0,2415.9,0.82769]
[1750526889376,1.4191,2416.1,2416.0,0.82765]
[1750526892888,2.24672,2416.1,2416.0,0.82765]
[1750526893987,0.82765,2416.0,2415.9,4.03548]
[1750526894292,4.73912851,2416.0,2415.9,6.518]
[1750526894583,4.73912851,2416.0,2415.9,7.34569]
[1750526894777,0.82763,2416.1,2416.0,0.82765]
[1750526894976,1.9282125,2416.1,2416.0,0.82765]
[1750526895180,3.2380125,2416.1,2416.0,0.82765]
[1750526895688,2.13743,2416.1,2416.0,0.82765]
[1750526895889,3.23798054,2416.1,2416.0,0.82765]
[1750526896189,2.13743,2416.1,2416.0,0.82765]
[1750526896391,3.237978,2416.1,2416.0,0.82765]
[1750526897187,2.13743,2416.1,2416.0,0.82765]
[1750526897380,3.23803696,2416.1,2416.0,0.82765]
[1750526897576,2.13743,2416.1,2416.0,0.82765]
[1750526898989,3.23820772,2416.1,2416.0,0.82765]
[1750526899290,2.13743,2416.1,2416.0,0.82765]
[1750526900290,3.23833673,2416.1,2416.0,0.82765]
[1750526900693,2.13743,2416.1,2416.0,0.82765]
[1750526900989,3.23847384,2416.1,2416.0,0.82765]
[1750526901890,2.13743,2416.1,2416.0,0.82765]
[1750526902390,1.3098,2416.1,2416.0,0.82765]
[1750526902598,2.13742,2416.1,2416.0,0.82765]
[1750526902791,3.23877379,2416.1,2416.0,0.82765]
[1750526902992,3.23879038,2416.1,2416.0,0.82765]
[1750526903294,2.13742,2416.1,2416.0,0.82765]
[1750526903489,1.3098,2416.1,2416.0,0.82765]
[1750526904086,0.82754,2416.4,2416.3,0.82753]
[1750526904281,1.1018701,2416.4,2416.3,0.82753]
[1750526904492,3.2078,2416.8,2416.4,2.06876]
[1750526904790,3.2078,2416.8,2416.7,0.82741]
[1750526904988,0.6503,2417.0,2416.9,0.82735]
[1750526905186,3.0594382,2417.0,2416.9,0.82735]
[1750526905390,2.47564664,2418.2,2417.2,2.06812]
[1750526905595,3.2078,2418.4,2417.2,2.06812]
[1750526905596,3.8581,2418.4,2418.0,0.82694]
[1750526905890,1.3087,2418.1,2418.0,0.82694]
[1750526906190,1.3087,2418.1,2418.0,0.82697]
[1750526906390,3.91037851,2418.1,2418.0,6.518]
[1750526906591,3.91037851,2418.1,2418.0,7.34497]
[1750526907289,1.3087,2418.1,2418.0,7.34497]
[1750526908288,1.3087,2418.1,2418.0,7.34297]
[1750526908796,1.3087,2418.1,2417.9,0.82699]
[1750526908990,3.91037851,2418.1,2417.8,4.03481]
[1750526909190,2.60167851,2417.9,2417.8,6.516]
[1750526909390,2.60167851,2417.9,2417.8,7.34304]
[1750526909695,3.97927851,2417.9,2417.8,6.516]
[1750526910898,3.97927851,2417.9,2417.7,0.82706]
[1750526911398,4.80628851,2417.9,2417.7,6.515]
[1750526912296,4.80628851,2417.9,2417.4,0.82716]
[1750526912297,0.82709,2417.7,2417.4,0.82716]
[1750526912499,0.82709,2417.7,2417.2,3.2078]
[1750526912500,2.60167851,2417.7,2417.2,3.2078]
[1750526912694,2.60167851,2417.5,2417.3,0.82718]
[1750526912895,1.4038,2417.4,2417.3,0.82718]
[1750526913297,1.4038,2417.4,2417.2,10.55004]
[1750526913498,1.4038,2417.4,2417.2,4.03504]
[1750526913798,1.4038,2417.4,2417.2,10.54904]
[1750526913996,2.23099,2417.4,2417.2,3.2078]
[1750526914197,2.23099,2417.4,2417.2,6.706]
[1750526914198,1.4038,2417.4,2417.2,6.706]
[1750526914600,1.4038,2417.4,2417.3,0.82721]
[1750526921506,2.23098,2417.4,2417.2,10.74102]
[1750526921701,2.23098,2417.4,2417.2,6.706]
[1750526921902,0.643,2417.3,2417.2,7.53324]
[1750526922102,1.9593,2417.3,2417.2,7.53324]
[1750526923210,1.9593,2417.3,2417.2,7.53224]
[1750526923607,1.9593,2417.3,2417.1,6.705]
[1750526923813,0.6712,2417.2,2417.1,7.53228]
[1750526924110,2.0797,2417.2,2417.1,7.53228]
[1750526926023,2.90694,2417.2,2417.0,6.705]
[1750526926217,2.90694,2417.2,2417.1,0.82728]
[1750526927117,2.90694,2417.2,2417.0,6.705]
[1750526927118,0.82731,2417.0,2416.7,0.7118]
[1750526927307,0.82735,2416.9,2416.8,7.53236]
[1750526927912,0.82734,2417.0,2416.9,0.82734]
[1750526928318,0.82735,2416.9,2416.8,7.53236]
[1750526928622,0.82735,2416.9,2416.8,6.705]
[1750526928820,0.82738,2416.8,2416.6,4.03522]
[1750526929120,0.82741,2416.7,2416.6,10.74023]
[1750526929310,1.49981,2416.7,2416.6,10.74023]
[1750526929507,2.0841,2416.7,2416.6,10.74023]
[1750526929710,2.91152,2416.7,2416.6,4.03523]
[1750526930327,0.82748,2416.5,2416.4,7.53251]
[1750526930512,0.82747,2416.6,2416.5,0.82748]
[1750526930713,1.4117,2416.6,2416.5,0.82748]
[1750526930922,0.6646,2416.8,2416.5,3.2078]
[1750526931112,0.6646,2416.8,2416.7,0.82742]
[1750526933715,1.49198,2416.8,2416.7,0.82742]
[1750526933907,1.49198,2416.8,2416.7,6.706]
[1750526934714,1.49198,2416.8,2416.7,7.53342]
[1750526935124,0.6646,2416.8,2416.7,7.53342]
[1750526935419,4.03517,2416.9,2416.8,0.82738]
[1750526935925,3.2078,2416.9,2416.8,0.82738]
[1750526937318,4.03515,2416.9,2416.8,0.82738]
[1750526937520,4.03515,2416.9,2416.7,7.53339]
[1750526938026,4.03515,2416.9,2416.8,0.82738]
[1750526938527,4.03515,2416.9,2416.7,7.53339]
[1750526939828,0.82738,2416.8,2416.7,7.53339]
[1750526940525,4.03517,2416.9,2416.7,7.53339]
[1750526940727,0.82738,2416.8,2416.7,7.53339]
[1750526941330,3.2078,2416.9,2416.7,7.53339]
[1750526941527,4.03518,2416.9,2416.7,7.53339]
[1750526941729,4.03518,2416.9,2416.7,6.706]
[1750526942229,3.9026,2417.1,2416.7,6.706]
[1750526942433,0.82736,2416.9,2416.8,0.82737]
[1750526943434,0.82738,2416.8,2416.7,7.53339]
[1750526944932,0.82738,2416.8,2416.7,6.706]
[1750526945234,0.82738,2416.8,2416.7,7.53342]
[1750526945835,0.82738,2416.8,2416.7,0.82742]
[1750526946135,0.82738,2416.8,2416.7,7.46342]
[1750526946637,0.82738,2416.8,2416.7,6.636]
[1750526946831,0.82738,2416.8,2416.6,3.2078]
[1750526946832,0.82742,2416.7,2416.6,3.2078]
[1750526947026,1.51842,2416.7,2416.6,9.8438]
[1750526947635,1.51842,2416.7,2416.6,10.67125]
[1750526948135,1.51842,2416.7,2416.6,9.8438]
[1750526949136,1.51842,2416.7,2416.6,10.67125]
[1750526950732,1.51842,2416.7,2416.6,9.8438]
[1750526953136,1.51842,2416.7,2416.6,10.67125]
[1750526954538,1.51842,2416.7,2416.6,9.8438]
[1750526955340,1.51842,2416.7,2416.6,7.46345]
[1750526955640,1.51842,2416.7,2416.6,0.82745]
[1750526956544,0.82745,2416.6,2416.5,10.67126]
[1750526956842,2.17025,2416.6,2416.5,10.67126]
[1750526957042,1.3428,2416.6,2416.5,4.03526]
[1750526957243,1.3428,2416.6,2416.5,10.67126]
[1750526958340,1.3428,2416.6,2416.5,4.03526]
[1750526958534,0.82748,2416.5,2416.4,0.82749]
[1750526958846,0.82748,2416.5,2416.4,7.46349]
[1750526959432,1.3428,2416.5,2416.4,0.82749]
[1750526959633,2.17028,2416.5,2416.4,7.46349]
[1750526960043,1.3428,2416.5,2416.4,0.82749]
[1750526960238,2.17028,2416.5,2416.4,7.46349]
[1750526960743,2.17028,2416.5,2416.4,7.46449]
[1750526960945,1.3428,2416.5,2416.4,7.46449]
[1750526963144,2.17028,2416.5,2416.4,7.46449]
[1750526964150,2.17028,2416.5,2416.4,0.82749]
[1750526964348,0.82752,2416.4,2416.3,10.76727053]
[1750526964550,1.9517,2416.4,2416.3,10.76727053]
[1750526965051,2.77922,2416.4,2416.3,10.76727053]
[1750526965243,1.9517,2416.4,2416.3,10.76727053]
[1750526966148,2.77922,2416.4,2416.3,3.30274053]
[1750526966367,2.77922,2416.4,2416.3,9.93974053]
[1750526966556,2.77922,2416.4,2416.3,6.637]
[1750526966750,2.77922,2416.4,2416.3,7.46455]
[1750526966947,2.77922,2416.4,2416.3,0.82755]
[1750526967153,2.77922,2416.4,2416.3,6.637]
[1750526967360,2.77922,2416.4,2416.3,7.46455]
[1750526967653,1.9517,2416.4,2416.3,7.46455]
[1750526968554,2.77922,2416.4,2416.3,7.46455]
[1750526969156,2.77922,2416.4,2416.3,0.82755]
[1750526970852,1.9517,2416.4,2416.3,0.82755]
[1750526971646,0.82759,2416.2,2416.1,3.30274053]
[1750526971852,0.82759,2416.2,2416.0,7.46465]
[1750526972156,0.7075,2416.1,2416.0,7.46465]
[1750526973760,0.82759,2416.2,2416.1,0.82762]
[1750526974660,1.3469,2416.3,2416.0,6.637]
[1750526974862,0.82762,2416.1,2416.0,6.637]
[1750526975155,1.3469,2416.3,2415.9,6.51054053]
[1750526975156,0.82765,2416.0,2415.9,6.51054053]
[1750526975354,0.82765,2416.0,2415.9,3.2078]
[1750526975552,0.82772,2415.8,2415.7,48.50173]
[1750526975855,0.82772,2415.8,2415.7,55.13873]
[1750526976257,0.82772,2415.8,2415.7,54.311]
[1750526976454,0.82772,2415.8,2415.7,54.251]
[1750526977050,0.82771,2415.9,2415.7,55.07876]
[1750526977349,0.82769,2415.9,2415.7,54.251]
[1750526977857,0.82769,2415.9,2415.8,0.82772]
[1750526978056,0.82769,2415.9,2415.7,55.07874]
[1750526978260,0.82769,2415.9,2415.7,55.07875]
[1750526978558,0.6515,2415.8,2415.7,55.07875]
[1750526979662,0.6515,2415.8,2415.6,4.70748]
[1750526979855,0.82776,2415.7,2415.6,4.03558]
[1750526980251,0.82776,2415.7,2415.6,9.7848]
[1750526980450,2.16526,2415.7,2415.6,9.7848]
[1750526980653,2.16526,2415.7,2415.6,3.2078]
[1750526983462,0.82786,2415.4,2415.3,9.7858]
[1750526983761,0.82786,2415.4,2415.3,3.2078]
[1750526984153,2.95045,2415.5,2415.3,4.03569]
[1750526984355,0.82786,2415.4,2415.3,3.2078]
[1750526984651,2.95045,2415.5,2415.3,4.03569]
[1750526985465,0.82786,2415.4,2415.3,4.03569]
[1750526986157,0.82786,2415.4,2415.3,3.2078]
[1750526986863,0.82786,2415.4,2415.3,4.03569]
[1750526987365,2.15836,2415.4,2415.3,4.03569]
[1750526987963,1.3305,2415.4,2415.3,6.63736851]
[1750526988167,1.53963,2415.5,2415.4,0.82786]
[1750526989264,1.53963,2415.5,2415.3,5.80947851]
[1750526989464,1.53963,2415.5,2415.4,0.82786]
[1750526989969,0.82786,2415.4,2415.3,6.63734851]
[1750526991674,1.53965,2415.5,2415.4,0.82786]
[1750526995771,1.3305,2415.7,2415.5,0.82779]
[1750526995977,0.82785,2415.5,2415.4,0.82784]
[1750526998384,1.51521,2415.6,2415.5,0.82783]
[1750526999272,0.82781,2415.6,2415.5,7.40683]
[1750526999679,0.82781,2415.6,2415.5,6.579]
[1750527002086,0.82779,2415.6,2415.5,6.579]
[1750527003291,0.82786,2415.4,2415.3,4.03569]
[1750527003490,0.82786,2415.4,2415.3,10.61469]
[1750527003792,0.82786,2415.4,2415.3,9.7868]
[1750527003988,2.23626,2415.4,2415.3,9.7868]
[1750527008294,2.23626,2415.4,2415.3,9.7518]
[1750527011507,2.23626,2415.4,2415.3,3.2078]
[1750527011696,2.23626,2415.4,2415.3,9.7518]
[1750527013799,2.23626,2415.4,2415.3,3.2078]
[1750527014094,2.91326,2415.4,2415.3,3.2078]
[1750527014491,7.82936229,2415.4,2415.0,13.05454053]
[1750527014682,0.82796,2415.1,2415.0,13.05454053]
[1750527014886,0.82796,2415.1,2415.0,9.7518]
[1750527015094,0.82796,2415.1,2415.0,13.05454053]
[1750527015492,0.82796,2415.1,2415.0,9.7518]
[1750527015695,2.12026,2415.1,2415.0,9.7518]
[1750527016692,2.12026,2415.1,2415.0,10.5798]
[1750527016895,2.12026,2415.1,2415.0,9.7518]
[1750527017092,2.12026,2415.1,2415.0,3.2078]
[1750527017300,2.12026,2415.1,2415.0,9.7518]
[1750527021594,2.12026,2415.1,2415.0,10.5798]
[1750527022299,2.12026,2415.1,2415.0,3.2078]
[1750527022500,2.12026,2415.1,2415.0,9.7518]
[1750527022892,2.12026,2415.1,2415.0,3.2078]
[1750527023094,2.12026,2415.1,2415.0,9.7518]
[1750527023606,2.12026,2415.1,2415.0,10.5798]
[1750527024201,2.12026,2415.1,2415.0,9.7518]
[1750527024401,2.12026,2415.1,2415.0,10.5798]
[1750527025203,2.12026,2415.1,2415.0,9.7518]
[1750527027398,2.12026,2415.1,2415.0,9.7528]
[1750527028602,2.12026,2415.1,2415.0,3.2078]
[1750527029302,10.96389851,2415.1,2414.7,3.2078]
[1750527029500,0.82807,2414.8,2414.7,3.2078]
[1750527030299,2.23707,2414.8,2414.7,3.2078]
[1750527034414,0.8281,2414.7,2414.6,6.545]
[1750527034708,0.6871,2414.9,2414.6,6.545]
[1750527034903,0.82808,2414.8,2414.7,3.42975851]
[1750527035100,0.82805,2414.9,2414.8,0.82806]
[1750527035318,0.82799,2415.1,2415.0,0.82799]
[1750527035509,0.82799,2415.1,2415.0,5.80947851]
[1750527035806,0.82799,2415.1,2415.0,3.2078]
[1750527036722,0.82799,2415.1,2415.0,9.7528]
[1750527041014,0.82799,2415.1,2415.0,9.7488]
[1750527041411,0.82799,2415.1,2415.0,3.2078]
[1750527041612,0.82799,2415.1,2415.0,9.7488]
[1750527042514,0.82799,2415.1,2415.0,3.2078]
[1750527042709,0.82799,2415.1,2415.0,9.7488]
[1750527043412,0.82799,2415.1,2415.0,6.541]
[1750527043599,0.7066,2415.1,2414.8,1.48854]
[1750527043803,0.828,2415.0,2414.9,6.541]
[1750527044113,0.828,2415.0,2414.9,7.36903]
[1750527044514,1.53459,2415.1,2415.0,0.828]
[1750527044713,1.53459,2415.1,2415.0,3.2078]
[1750527047117,1.53459,2415.1,2415.0,9.7488]
[1750527049708,1.53459,2415.1,2415.0,6.541]
[1750527050614,1.53459,2415.1,2415.0,9.7488]
[1750527051412,1.53459,2415.1,2415.0,10.5768]
[1750527051718,1.53459,2415.1,2415.0,9.7488]
[1750527052812,1.53459,2415.1,2415.0,3.2078]
[1750527053115,1.53459,2415.1,2415.0,6.541]
[1750527053912,0.82806,2414.9,2414.8,6.541]
[1750527054615,0.82806,2414.9,2414.8,0.82807]
[1750527054818,0.82806,2414.9,2414.8,7.36907]
[1750527055012,2.23492,2415.0,2414.8,7.36907]
[1750527055619,0.82803,2414.9,2414.8,7.36907]
[1750527056621,0.82807,2414.8,2414.7,9.7488]
[1750527056918,1.52727,2414.8,2414.7,3.2078]
[1750527057317,2.94047,2414.8,2414.7,3.2078]
[1750527057507,0.8282,2414.4,2414.3,6.51054053]
[1750527057713,0.8282,2414.4,2414.3,3.2078]
[1750527058322,2.9406,2414.4,2414.3,3.2078]
[1750527058817,8.6534,2414.4,2413.9,3.30274053]
[1750527059017,0.82846,2413.7,2413.4,0.33347339]
[1750527059213,3.60529,2413.6,2413.4,0.33347339]
[1750527059409,2.7768,2413.6,2413.4,1.16201339]
[1750527059616,3.60528,2413.6,2413.4,0.82854]
[1750527059920,3.60528,2413.6,2413.4,7.37053]
[1750527059921,2.7768,2413.6,2413.4,7.37053]
[1750527060124,3.60529,2413.6,2413.4,6.542]
[1750527060322,3.60529,2413.6,2413.3,10.57836]
[1750527060513,2.7768,2413.6,2413.3,9.7498]
[1750527060710,0.82853,2413.5,2413.3,10.57835]
[1750527061011,1.3157,2413.4,2413.3,10.57835]
[1750527061422,2.14425,2413.4,2413.3,3.2078]
[1750527061617,1.3157,2413.4,2413.3,4.03638]
[1750527062219,2.14425,2413.4,2413.3,3.2078]
[1750527062418,0.82864,2413.2,2413.0,4.03647]
[1750527062623,0.82868,2413.0,2412.9,0.24520762]
[1750527062923,14.42421851,2413.0,2411.9,3.2078]
[1750527063113,3.43057851,2412.4,2412.1,0.82897]
[1750527063315,0.6589,2413.1,2410.9,7.35169317]
[1750527063316,3.2078,2411.9,2410.9,7.35169317]
[1750527063520,5.20335702,2412.2,2408.9,0.24520762]
[1750527063521,3.2078,2410.7,2408.9,0.24520762]
[1750527063818,3.2078,2410.7,2408.1,12.77846874]
[1750527063819,3.2078,2409.6,2409.0,0.083022]
[1750527064018,3.2078,2409.1,2408.8,0.97984914]
[1750527064324,3.2078,2409.6,2408.9,8.16584914]
[1750527064528,3.2078,2409.9,2409.4,2.60167851]
[1750527064726,3.2078,2409.9,2409.5,9.5764]
[1750527065021,3.2078,2409.9,2409.5,2.0644]
[1750527065223,3.2078,2409.9,2409.8,0.97984914]
[1750527065522,3.2078,2409.9,2409.6,8.49184914]
[1750527065713,3.2078,2409.9,2409.8,0.97984914]
[1750527065915,3.2078,2410.6,2409.8,7.516]
[1750527066125,3.2078,2410.6,2409.9,3.96447851]
[1750527066420,3.2078,2410.6,2410.1,2.60167851]
[1750527066614,3.2078,2410.2,2409.5,2.60167851]
[1750527066818,3.2078,2409.6,2408.5,3.2078]
[1750527067015,3.2078,2409.6,2408.6,1.343]
[1750527067216,3.2078,2409.6,2408.8,0.8301]
[1750527067523,0.7742,2410.3,2408.1,11.0358]
[1750527067524,0.83004,2409.1,2408.1,11.0358]
[1750527067724,3.2078,2409.2,2408.7,1.343]
[1750527067919,3.2078,2409.2,2408.8,0.83011]
[1750527068119,3.2078,2409.2,2408.9,2.17309]
[1750527068321,3.2078,2409.2,2408.9,1.343]
[1750527068729,3.2078,2409.5,2408.9,6.343]
[1750527068926,3.2078,2409.5,2409.3,0.82994]
[1750527069121,3.2078,2409.5,2409.4,1.343]
[1750527069324,3.2078,2410.3,2409.4,53.99445627]
[1750527069532,0.82966,2410.2,2409.6,0.82983]
[1750527069727,0.8297,2410.1,2409.5,8.66188]
[1750527069929,0.82966,2410.2,2409.7,0.82982]